[Event "V Sunway Sitges Open 2018"]
[Site "Sitges"]
[Date "2018.12.17"]
[Round "4"]
[White "Dragnev, Valentin"]
[Black "Peralta, Fernando"]
[Result "1/2-1/2"]
[ECO "A15"]
[WhiteElo "2483"]
[BlackElo "2584"]
[Annotator "ChessBase"]
[PlyCount "61"]
[EventDate "2018.12.14"]
[EventType "swiss"]
[EventCountry "ESP"]
[SourceTitle "playchess.com"]
[Source "ChessBase"]
[SourceQuality "1"]
[TimeControl "40/5400+30:1800+30"]

1. c4 {[%emt 0:00:00]} Nf6 {[%emt 0:01:58]} 2. Nf3 {[%emt 0:00:11]} e6 {[%emt 0:00:17]} 3. g3 {[%emt 0:00:16]} d5 {[%emt 0:00:28]} 4. d4 {[%emt 0:00:20]} Bb4+ {[%emt 0:00:37]} 5. Nc3 {[%emt 0:00:14]} O-O {[%emt 0:00:59]} 6. Bg2 {[%emt 0:00:03]} dxc4 {[%emt 0:00:10]} 7. O-O {[%emt 0:00:08]} Nc6 {[%emt 0:00:06]} 8. Qa4 {[%emt 0:00:10]} Nd5 {[%emt 0:06:53]} 9. Qc2 {[%emt 0:00:47]} Be7 {[%emt 0:02:19]} 10. Rd1 {[%emt 0:01:05]} b6 {[%emt 0:05:34]} 11. e4 {[%emt 0:16:01]} Ncb4 {[%emt 0:04:04]} 12. Qd2 {[%emt 0:11:07]} Nxc3 {[%emt 0:05:07]} 13. Qxc3 {[%emt 0:00:06]} Bb7 {[%emt 0:01:38]} 14. Ne1 {[%emt 0:00:46]} b5 {[%emt 0:09:25]} 15. b3 {[%emt 0:02:15]} cxb3 {[%emt 0:05:13]} 16. Qxb3 {[%emt 0:01:49]} a5 {[%emt 0:15:41]} 17. a3 {[%emt 0:16:41]} a4 {[%emt 0:00:12]} 18. Qc3 {[%emt 0:00:23]} Nc6 {[%emt 0:14:20]} 19. Bb2 {[%emt 0:05:30]} b4 {[%emt 0:03:19]} 20. axb4 {[%emt 0:03:55]} Bxb4 {[%emt 0:00:13]} 21. Qc4 {[%emt 0:00:30]} a3 {[%emt 0:15:16]} 22. Bc3 {[%emt 0:00:42]} Ra4 {[%emt 0:00:34]} 23. d5 {[%emt 0:14:46]} Bxc3 {[%emt 0:01:33]} 24. Qxc3 {[%emt 0:10:27]} exd5 {[%emt 0:00:06]} 25. exd5 {[%emt 0:00:20]} Na5 {[%emt 0:00:13]} 26. Rxa3 {[%emt 0:03:41]} Rxa3 {[%emt 0:00:08]} 27. Qxa3 {[%emt 0:00:05]} Nc4 {[%emt 0:00:09]} 28. Qc5 {[%emt 0:00:54]} Nd6 {[%emt 0:00:19]} 29. Rc1 {[%emt 0:00:31]} Re8 {[%emt 0:00:45]} 30. Nd3 {[%emt 0:00:20]} Re7 {[%emt 0:01:25]} 31. h4 {[%emt 0:02:55]} 1/2-1/2

[Event "V Sunway Sitges Open 2018"]
[Site "Sitges"]
[Date "2018.12.17"]
[Round "4"]
[White "Krishna Teja, N."]
[Black "Beliavsky, Alexander G"]
[Result "1-0"]
[ECO "D10"]
[WhiteElo "2340"]
[BlackElo "2544"]
[Annotator "ChessBase"]
[PlyCount "80"]
[EventDate "2018.12.14"]
[EventType "swiss"]
[EventCountry "ESP"]
[SourceTitle "playchess.com"]
[Source "ChessBase"]
[SourceQuality "1"]
[TimeControl "40/5400+30:1800+30"]

1. d4 {[%emt 0:00:00]} d5 {[%emt 0:00:00]} 2. c4 {[%emt 0:00:00]} c6 {[%emt 0:00:00]} 3. Nc3 {[%emt 0:00:00]} dxc4 {[%emt 0:00:05]} 4. e3 {[%emt 0:01:13]} b5 {[%emt 0:02:58]} 5. a4 {[%emt 0:00:05]} b4 {[%emt 0:00:48]} 6. Ne4 {[%emt 0:00:34]} Qd5 {[%emt 0:01:27]} 7. Nd2 {[%emt 0:00:06]} Ba6 {[%emt 0:03:59]} 8. Qc2 {[%emt 0:00:50]} c3 {[%emt 0:19:42]} 9. bxc3 {[%emt 0:01:18]} Bxf1 {[%emt 0:00:09]} 10. Kxf1 {[%emt 0:00:03]} e6 {[%emt 0:02:15]} 11. c4 {[%emt 0:04:43]} Qh5 {[%emt 0:03:58]} 12. Ngf3 {[%emt 0:04:13]} a5 {[%emt 0:05:24]} 13. c5 {[%emt 0:00:46]} Nf6 {[%emt 0:00:40]} 14. h3 {[%emt 0:08:14]} Be7 {[%emt 0:02:26]} 15. Kg1 {[%emt 0:00:19]} O-O {[%emt 0:01:31]} 16. g4 {[%emt 0:05:11]} Qd5 {[%emt 0:00:54]} 17. e4 {[%emt 0:01:02]} Qd8 {[%emt 0:01:28]} 18. Nc4 {[%emt 0:01:31]} Qc7 {[%emt 0:14:37]} 19. Bg5 {[%emt 0:07:01]} Rd8 {[%emt 0:05:43]} 20. Bxf6 {[%emt 0:04:33]} gxf6 {[%emt 0:04:21]} 21. Qc1 {[%emt 0:11:19]} Nd7 {[%emt 0:00:54]} 22. g5 {[%emt 0:04:26]} f5 {[%emt 0:10:51]} 23. e5 {[%emt 0:07:27]} Nxc5 {[%emt 0:02:16]} 24. dxc5 {[%emt 0:00:43]} Bxc5 {[%emt 0:00:07]} 25. Kg2 {[%emt 0:09:21]} Rd3 {[%emt 0:03:01]} 26. Qf4 {[%emt 0:00:12]} Rad8 {[%emt 0:00:46]} 27. Rac1 {[%emt 0:03:35]} Qa7 {[%emt 0:03:01]} 28. Rhf1 {[%emt 0:03:15]} b3 {[%emt 0:01:54]} 29. Nb2 {[%emt 0:01:44]} R3d5 {[%emt 0:00:36]} 30. Qc4 {[%emt 0:00:19]} Rb8 {[%emt 0:02:11]} 31. Nd3 {[%emt 0:00:32]} Bf8 {[%emt 0:00:58]} 32. Rb1 {[%emt 0:00:30]} Qd7 {[%emt 0:02:56]} 33. Nf4 {[%emt 0:03:11]} Rb4 {[%emt 0:00:29]} 34. Nxd5 {[%emt 0:00:23]} cxd5 {[%emt 0:00:03]} 35. Qd3 {[%emt 0:01:33]} Qxa4 {[%emt 0:00:22]} 36. Rfc1 {[%emt 0:02:22]} b2 {[%emt 0:01:52]} 37. Rc8 {[%emt 0:02:09]} Kg7 {[%emt 0:02:05]} 38. Rc7 {[%emt 0:01:52]} Rc4 39. Rb7 {[%emt 0:02:48]} Ba3 {[%emt 0:01:58]} 40. Rb3 {[%emt 0:00:00]} Rc1 {[%emt 0:01:15]} 1-0

[Event "V Sunway Sitges Open 2018"]
[Site "Sitges"]
[Date "2018.12.17"]
[Round "4"]
[White "Cruz, Filemon"]
[Black "Romanishin, Oleg M"]
[Result "1/2-1/2"]
[ECO "E15"]
[WhiteElo "2289"]
[BlackElo "2451"]
[Annotator "ChessBase"]
[PlyCount "73"]
[EventDate "2018.12.14"]
[EventType "swiss"]
[EventCountry "ESP"]
[SourceTitle "playchess.com"]
[Source "ChessBase"]
[SourceQuality "1"]
[TimeControl "40/5400+30:1800+30"]

1. d4 Nf6 2. c4 e6 3. Nf3 b6 4. g3 Ba6 5. b3 Bb7 6. Bg2 Bb4+ 7. Bd2 a5 8. O-O O-O 9. Bf4 {[%emt 0:09:17]} a4 {[%emt 0:13:24]} 10. Nbd2 d5 11. Qc2 {[%emt 0:02:21]} Nc6 {[%emt 0:10:23]} 12. Rad1 {[%emt 0:10:33]} Be7 {[%emt 0:14:44]} 13. Qb2 {[%emt 0:04:29]} Ra7 {[%emt 0:15:04]} 14. Ne5 {[%emt 0:04:47]} Qa8 {[%emt 0:02:57]} 15. cxd5 {[%emt 0:25:20]} Nxe5 {[%emt 0:03:50]} 16. Bxe5 {[%emt 0:00:53]} Bxd5 {[%emt 0:06:45]} 17. e4 {[%emt 0:05:28]} Nxe4 {[%emt 0:03:59]} 18. Bxe4 {[%emt 0:00:12]} Bxe4 {[%emt 0:00:19]} 19. d5 {[%emt 0:00:06]} Bxd5 {[%emt 0:11:19]} 20. Bxg7 {[%emt 0:00:17]} axb3 {[%emt 0:07:59]} 21. Bh6 {[%emt 0:01:04]} f6 {[%emt 0:00:40]} 22. Bxf8 {[%emt 0:00:07]} Rxa2 {[%emt 0:00:35]} 23. Qc3 {[%emt 0:01:00]} Kxf8 {[%emt 0:01:19]} 24. Qxc7 {[%emt 0:00:50]} Rc2 25. Qf4 {[%emt 0:02:37]} b2 {[%emt 0:04:20]} 26. Rfe1 {[%emt 0:01:33]} Qc6 {[%emt 0:00:29]} 27. Nf1 {[%emt 0:02:01]} Ba2 {[%emt 0:02:57]} 28. h4 {[%emt 0:05:44]} b1=Q {[%emt 0:00:42]} 29. Rxb1 {[%emt 0:00:06]} Bxb1 {[%emt 0:00:06]} 30. Rxb1 {[%emt 0:00:03]} Qc5 {[%emt 0:01:17]} 31. Ra1 {[%emt 0:02:00]} Qf5 {[%emt 0:01:24]} 32. Qxf5 {[%emt 0:01:02]} exf5 {[%emt 0:00:02]} 33. Ne3 {[%emt 0:00:06]} Rc5 {[%emt 0:00:17]} 34. Ra7 b5 {[%emt 0:00:23]} 35. Rb7 {[%emt 0:00:32]} Re5 {[%emt 0:00:48]} 36. Kg2 {[%emt 0:00:29]} f4 {[%emt 0:00:47]} 37. gxf4 1/2-1/2

[Event "V Sunway Sitges Open 2018"]
[Site "Sitges"]
[Date "2018.12.17"]
[Round "4"]
[White "Skagseth, Havard M"]
[Black "Linsenmeyer, Mario"]
[Result "0-1"]
[ECO "C42"]
[WhiteElo "2002"]
[BlackElo "2172"]
[Annotator "NA"]
[PlyCount "84"]
[EventDate "2018.12.14"]
[EventType "swiss"]
[EventCountry "ESP"]
[SourceTitle "playchess.com"]
[Source "ChessBase"]
[SourceQuality "1"]
[TimeControl "40/5400+30:1800+30"]

1. e4 {[%emt 0:00:33]} e5 {[%emt 0:00:00]} 2. Nf3 {[%emt 0:00:10]} Nf6 {[%emt 0:00:00]} 3. Nxe5 {[%emt 0:00:16]} d6 {[%emt 0:00:00]} 4. Nf3 {[%emt 0:00:07]} Nxe4 {[%emt 0:00:00]} 5. Nc3 {[%emt 0:00:28]} Nxc3 {[%emt 0:00:04]} 6. dxc3 {[%emt 0:00:10]} Be7 {[%emt 0:00:07]} 7. Be3 {[%emt 0:00:11]} O-O {[%emt 0:00:18]} 8. Qd2 {[%emt 0:00:14]} Nd7 {[%emt 0:00:11]} 9. O-O-O {[%emt 0:00:17]} Nf6 {[%emt 0:00:10]} 10. Bd3 {[%emt 0:00:39]} c5 {[%emt 0:00:12]} 11. Rhe1 {[%emt 0:01:49]} d5 {[%emt 0:01:37]} 12. Kb1 {[%emt 0:09:48]} b5 {[%emt 0:09:35]} 13. Ne5 {[%emt 0:06:02]} Bd6 {[%emt 0:06:46]} 14. Bg5 {[%emt 0:00:34]} c4 {[%emt 0:26:10]} 15. Bf1 {[%emt 0:04:48]} Be6 {[%emt 0:01:33]} 16. Nc6 {[%emt 0:02:58]} Qb6 {[%emt 0:01:08]} 17. Bxf6 {[%emt 0:00:27]} gxf6 {[%emt 0:00:06]} 18. Nd4 {[%emt 0:00:31]} Rfe8 {[%emt 0:06:12]} 19. Qh6 {[%emt 0:03:16]} Bf8 {[%emt 0:03:40]} 20. Qxf6 {[%emt 0:01:07]} Bg7 {[%emt 0:00:13]} 21. Qf4 {[%emt 0:04:32]} Bd7 {[%emt 0:04:44]} 22. Rxe8+ {[%emt 0:14:49]} Rxe8 {[%emt 0:00:15]} 23. Qd2 {[%emt 0:00:37]} b4 {[%emt 0:01:33]} 24. Ka1 {[%emt 0:04:50]} bxc3 {[%emt 0:06:06]} 25. bxc3 {[%emt 0:00:13]} Rb8 {[%emt 0:00:10]} 26. Qc1 {[%emt 0:02:43]} Bh6 {[%emt 0:00:21]} 27. Qa3 {[%emt 0:02:13]} Bf8 {[%emt 0:06:18]} 28. Qc1 {[%emt 0:00:10]} Qa5 {[%emt 0:02:53]} 29. Qe3 {[%emt 0:03:28]} Qb6 {[%emt 0:04:30]} 30. Qc1 {[%emt 0:00:23]} h6 {[%emt 0:03:04]} 31. Ne2 {[%emt 0:03:23]} Be6 {[%emt 0:01:48]} 32. Qb1 {[%emt 0:07:12]} Qc7 {[%emt 0:00:27]} 33. Qc1 {[%emt 0:00:06]} Kh7 {[%emt 0:00:37]} 34. g3 {[%emt 0:02:37]} Qa5 {[%emt 0:00:53]} 35. Qf4 {[%emt 0:01:27]} Qb6 {[%emt 0:00:07]} 36. Qc1 {[%emt 0:00:20]} Rb7 {[%emt 0:01:31]} 37. Bg2 {[%emt 0:05:11]} Qa5 38. Bxd5 {[%emt 0:05:08]} Bxd5 {[%emt 0:01:30]} 39. Qf4 {[%emt 0:00:26]} Qb5 {[%emt 0:02:35]} 40. Qc1 {[%emt 0:00:00]} Bf3 {[%emt 0:00:00]} 41. Nd4 {[%emt 0:03:06]} Qa5 {[%emt 0:02:52]} 42. Qe3 {[%emt 0:00:30]} Qb6 {[%emt 0:00:11]} 0-1

[Event "V Sunway Sitges Open 2018"]
[Site "Sitges"]
[Date "2018.12.17"]
[Round "4"]
[White "Prieto, Alberto"]
[Black "Lorenzo Duran, Marcos"]
[Result "0-1"]
[ECO "C33"]
[WhiteElo "1953"]
[BlackElo "2149"]
[Annotator "NA"]
[PlyCount "76"]
[EventDate "2018.12.14"]
[EventType "swiss"]
[EventCountry "ESP"]
[SourceTitle "playchess.com"]
[Source "ChessBase"]
[SourceQuality "1"]
[TimeControl "40/5400+30:1800+30"]

1. e4 {[%emt 0:00:00]} e5 {[%emt 0:00:00]} 2. f4 {[%emt 0:00:12]} exf4 {[%emt 0:00:02]} 3. Nc3 {[%emt 0:00:37]} Qh4+ {[%emt 0:07:53]} 4. Ke2 {[%emt 0:00:12]} d6 {[%emt 0:04:08]} 5. d4 {[%emt 0:00:44]} g5 {[%emt 0:09:57]} 6. Nd5 {[%emt 0:02:56]} Na6 {[%emt 0:05:06]} 7. Nf3 {[%emt 0:01:16]} Bg4 {[%emt 0:00:24]} 8. Kd2 {[%emt 0:07:00]} Qf2+ {[%emt 0:05:44]} 9. Qe2 {[%emt 0:01:31]} Qxe2+ {[%emt 0:00:08]} 10. Bxe2 {[%emt 0:00:10]} Bxf3 {[%emt 0:00:14]} 11. gxf3 {[%emt 0:00:27]} Kd7 {[%emt 0:01:09]} 12. h4 {[%emt 0:01:54]} c6 {[%emt 0:00:46]} 13. Bxa6 {[%emt 0:04:51]} bxa6 {[%emt 0:00:10]} 14. Nb4 {[%emt 0:02:03]} f6 {[%emt 0:07:28]} 15. Nd3 {[%emt 0:04:35]} Ne7 {[%emt 0:00:57]} 16. e5 {[%emt 0:02:57]} Ng6 {[%emt 0:03:38]} 17. h5 {[%emt 0:07:00]} Nh4 {[%emt 0:00:21]} 18. Rh3 {[%emt 0:00:50]} fxe5 {[%emt 0:02:39]} 19. dxe5 {[%emt 0:00:50]} Nf5 {[%emt 0:01:51]} 20. b3 {[%emt 0:02:00]} Bg7 {[%emt 0:07:31]} 21. Bb2 {[%emt 0:00:21]} h6 {[%emt 0:00:46]} 22. Re1 {[%emt 0:01:19]} Rhe8 {[%emt 0:00:34]} 23. Rhh1 {[%emt 0:01:19]} Bh8 {[%emt 0:04:19]} 24. Re4 {[%emt 0:02:02]} Ng3 {[%emt 0:00:45]} 25. Rhe1 {[%emt 0:03:01]} Nxe4+ {[%emt 0:00:11]} 26. Rxe4 {[%emt 0:00:14]} Rad8 {[%emt 0:06:01]} 27. Ra4 {[%emt 0:01:27]} Kc8 {[%emt 0:00:48]} 28. Rxa6 {[%emt 0:00:35]} Kb7 {[%emt 0:00:12]} 29. Ra4 {[%emt 0:00:46]} Bxe5 {[%emt 0:02:39]} 30. Bxe5 {[%emt 0:01:26]} dxe5 {[%emt 0:00:07]} 31. Ke2 {[%emt 0:00:10]} Rd4 {[%emt 0:08:36]} 32. b4 {[%emt 0:02:41]} Rc4 {[%emt 0:03:16]} 33. Nc5+ {[%emt 0:06:38]} Ka8 {[%emt 0:00:45]} 34. Kd3 {[%emt 0:00:45]} Rd4+ {[%emt 0:00:41]} 35. Kc3 {[%emt 0:03:32]} g4 {[%emt 0:00:41]} 36. fxg4 {[%emt 0:01:52]} f3 {[%emt 0:02:44]} 37. Nd3 {[%emt 0:01:36]} Rxd3+ {[%emt 0:00:33]} 38. Kxd3 {[%emt 0:00:16]} Rf8 {[%emt 0:00:13]} 0-1

[Event "V Sunway Sitges Open 2018"]
[Site "Sitges"]
[Date "2018.12.17"]
[Round "4"]
[White "Walter Travella, German"]
[Black "Garcia Ruiz, Adrian"]
[Result "1-0"]
[ECO "C54"]
[WhiteElo "1917"]
[BlackElo "1977"]
[Annotator "NA"]
[PlyCount "45"]
[EventDate "2018.12.14"]
[EventType "swiss"]
[EventCountry "ESP"]
[SourceTitle "playchess.com"]
[Source "ChessBase"]
[SourceQuality "1"]
[TimeControl "40/5400+30:1800+30"]

1. e4 {[%emt 0:00:10]} e5 {[%emt 0:30:23]} 2. Nf3 {[%emt 0:01:16]} Nc6 {[%emt 0:00:02]} 3. Bc4 {[%emt 0:00:12]} Bc5 {[%emt 0:00:03]} 4. c3 {[%emt 0:00:23]} Nf6 {[%emt 0:00:02]} 5. d4 {[%emt 0:00:16]} exd4 {[%emt 0:00:02]} 6. cxd4 {[%emt 0:00:18]} Bb4+ {[%emt 0:00:32]} 7. Nc3 {[%emt 0:00:22]} Nxe4 {[%emt 0:00:38]} 8. O-O {[%emt 0:00:24]} Bxc3 {[%emt 0:00:43]} 9. d5 {[%emt 0:06:15]} Ne5 {[%emt 0:05:32]} 10. Qe2 {[%emt 0:08:06]} Nxf3+ {[%emt 0:11:28]} 11. Qxf3 {[%emt 0:05:17]} O-O {[%emt 0:06:58]} 12. bxc3 {[%emt 0:02:04]} Re8 {[%emt 0:04:10]} 13. Bd3 {[%emt 0:13:43]} Nc5 {[%emt 0:02:39]} 14. d6 {[%emt 0:07:36]} cxd6 {[%emt 0:04:10]} 15. Bc4 {[%emt 0:01:46]} Ne6 {[%emt 0:02:43]} 16. Ba3 {[%emt 0:02:37]} Qc7 {[%emt 0:01:20]} 17. Bd5 {[%emt 0:01:21]} Rb8 {[%emt 0:02:40]} 18. Qg3 {[%emt 0:02:09]} Nc5 {[%emt 0:01:21]} 19. Rfe1 {[%emt 0:01:33]} Rf8 {[%emt 0:00:44]} 20. Qf4 {[%emt 0:01:33]} g6 {[%emt 0:11:43]} 21. Re8 {[%emt 0:01:04]} Rxe8 {[%emt 0:03:24]} 22. Qxf7+ {[%emt 0:00:25]} Kh8 {[%emt 0:00:22]} 23. Qf6# 1-0

[Event "V Sunway Sitges Open 2018"]
[Site "Sitges"]
[Date "2018.12.17"]
[Round "4"]
[White "Gardner, Leo"]
[Black "Empez Garcia, Manuel"]
[Result "1-0"]
[ECO "B27"]
[WhiteElo "1470"]
[BlackElo "1532"]
[Annotator "NA"]
[PlyCount "59"]
[EventDate "2018.12.14"]
[EventType "swiss"]
[EventCountry "ESP"]
[SourceTitle "playchess.com"]
[Source "ChessBase"]
[SourceQuality "1"]
[TimeControl "40/5400+30:1800+30"]

1. e4 {[%emt 0:00:00]} c5 {[%emt 0:00:00]} 2. Nf3 {[%emt 0:00:00]} g6 {[%emt 0:01:10]} 3. d4 {[%emt 0:00:00]} Nf6 {[%emt 0:01:23]} 4. Nc3 {[%emt 0:00:55]} e6 {[%emt 0:01:55]} 5. Be3 {[%emt 0:00:19]} cxd4 {[%emt 0:00:34]} 6. Nxd4 {[%emt 0:00:16]} Bg7 {[%emt 0:00:32]} 7. f3 {[%emt 0:00:23]} O-O {[%emt 0:03:35]} 8. Qd2 {[%emt 0:00:23]} a6 {[%emt 0:01:07]} 9. g4 {[%emt 0:01:03]} d6 {[%emt 0:00:08]} 10. h4 {[%emt 0:00:16]} e5 {[%emt 0:01:04]} 11. Nb3 {[%emt 0:01:34]} Nc6 {[%emt 0:00:26]} 12. O-O-O {[%emt 0:00:40]} Ne8 {[%emt 0:02:13]} 13. Nd5 {[%emt 0:06:09]} Rb8 {[%emt 0:01:44]} 14. Be2 {[%emt 0:12:57]} Be6 {[%emt 0:00:51]} 15. Bg5 {[%emt 0:05:28]} f6 {[%emt 0:02:23]} 16. Be3 {[%emt 0:05:49]} b5 {[%emt 0:01:03]} 17. f4 {[%emt 0:08:14]} a5 {[%emt 0:04:01]} 18. f5 {[%emt 0:04:11]} Bf7 {[%emt 0:00:30]} 19. g5 {[%emt 0:01:57]} a4 {[%emt 0:00:44]} 20. Na1 {[%emt 0:00:48]} b4 {[%emt 0:01:36]} 21. h5 Nd4 {[%emt 0:09:16]} 22. fxg6 {[%emt 0:14:31]} Bxd5 {[%emt 0:03:31]} 23. gxh7+ {[%emt 0:01:49]} Kxh7 {[%emt 0:03:33]} 24. g6+ {[%emt 0:00:57]} Kg8 {[%emt 0:01:04]} 25. exd5 {[%emt 0:02:52]} Nf5 {[%emt 0:01:08]} 26. h6 {[%emt 0:04:58]} Nxe3 {[%emt 0:02:21]} 27. Qxe3 {[%emt 0:04:00]} Qe7 {[%emt 0:01:16]} 28. hxg7 {[%emt 0:00:39]} Qxg7 {[%emt 0:00:28]} 29. Qh3 {[%emt 0:02:14]} Qxg6 30. Rdg1 1-0

[Event "V Sunway Sitges Open 2018"]
[Site "Sitges"]
[Date "2018.12.17"]
[Round "4"]
[White "Isaksson, Max"]
[Black "Stanghelle, Anders"]
[Result "1-0"]
[ECO "B30"]
[WhiteElo "1409"]
[BlackElo "1472"]
[Annotator "NA"]
[PlyCount "43"]
[EventDate "2018.12.14"]
[EventType "swiss"]
[EventCountry "ESP"]
[SourceTitle "playchess.com"]
[Source "ChessBase"]
[SourceQuality "1"]
[TimeControl "40/5400+30:1800+30"]

1. e4 {[%emt 0:03:05]} c5 {[%emt 0:00:00]} 2. Nf3 {[%emt 0:00:05]} Nc6 {[%emt 0:00:13]} 3. Bb5 {[%emt 0:00:10]} Nd4 {[%emt 0:01:13]} 4. Nxd4 {[%emt 0:08:52]} cxd4 {[%emt 0:00:16]} 5. d3 {[%emt 0:02:40]} Qa5+ {[%emt 0:01:09]} 6. c3 {[%emt 0:01:02]} Qxb5 {[%emt 0:00:23]} 7. cxd4 {[%emt 0:00:04]} Qb4+ {[%emt 0:01:58]} 8. Nc3 {[%emt 0:00:19]} Qxd4 {[%emt 0:01:17]} 9. Be3 {[%emt 0:02:17]} Qd6 {[%emt 0:02:55]} 10. O-O {[%emt 0:01:13]} e5 {[%emt 0:04:42]} 11. Rc1 {[%emt 0:01:34]} Qa6 {[%emt 0:05:14]} 12. Qb3 {[%emt 0:10:22]} Bd6 {[%emt 0:01:47]} 13. Nb5 {[%emt 0:06:44]} Bb8 {[%emt 0:00:30]} 14. Rxc8+ {[%emt 0:11:29]} Ke7 {[%emt 0:00:17]} 15. Nc7 {[%emt 0:09:09]} Bxc7 {[%emt 0:04:09]} 16. Rxa8 {[%emt 0:02:10]} b6 {[%emt 0:01:45]} 17. Qa3+ {[%emt 0:00:53]} Qxa3 {[%emt 0:01:11]} 18. bxa3 {[%emt 0:00:01]} a5 {[%emt 0:00:24]} 19. Rc1 {[%emt 0:00:26]} Bd6 {[%emt 0:02:46]} 20. Rcc8 {[%emt 0:00:56]} Bxa3 {[%emt 0:00:45]} 21. Bxb6 {[%emt 0:00:34]} Bb4 {[%emt 0:00:32]} 22. Bc5+ {[%emt 0:00:46]} 1-0

[Event "V Sunway Sitges Open 2018"]
[Site "Sitges"]
[Date "2018.12.17"]
[Round "4"]
[White "Tateo, Ida"]
[Black "Goris-Schouwstra, Adry"]
[Result "1-0"]
[ECO "C14"]
[WhiteElo "1206"]
[BlackElo "1645"]
[Annotator "NA"]
[PlyCount "63"]
[EventDate "2018.12.14"]
[EventType "swiss"]
[EventCountry "ESP"]
[SourceTitle "playchess.com"]
[Source "ChessBase"]
[SourceQuality "1"]
[TimeControl "40/5400+30:1800+30"]

1. e4 {[%emt 0:00:00]} e6 {[%emt 0:00:00]} 2. d4 {[%emt 0:00:00]} d5 {[%emt 0:00:00]} 3. Nc3 {[%emt 0:00:00]} Nf6 {[%emt 0:00:12]} 4. Bg5 {[%emt 0:00:09]} Be7 {[%emt 0:00:13]} 5. e5 Nfd7 6. Bxe7 {[%emt 0:01:15]} Qxe7 {[%emt 0:00:41]} 7. f4 {[%emt 0:00:29]} a6 {[%emt 0:01:46]} 8. Nf3 {[%emt 0:00:39]} c5 {[%emt 0:00:12]} 9. dxc5 {[%emt 0:00:45]} Qxc5 {[%emt 0:00:46]} 10. Qd2 {[%emt 0:00:58]} Nc6 {[%emt 0:01:01]} 11. O-O-O {[%emt 0:01:49]} Nb6 {[%emt 0:01:15]} 12. Nd4 {[%emt 0:04:07]} Bd7 {[%emt 0:04:27]} 13. h4 {[%emt 0:00:53]} Rc8 {[%emt 0:03:36]} 14. Nb3 {[%emt 0:04:27]} Qb4 {[%emt 0:01:44]} 15. a3 {[%emt 0:01:07]} Qe7 {[%emt 0:00:45]} 16. g4 {[%emt 0:02:41]} Nc4 {[%emt 0:03:24]} 17. Bxc4 {[%emt 0:03:43]} dxc4 {[%emt 0:00:25]} 18. Nc5 {[%emt 0:06:45]} Rc7 {[%emt 0:01:07]} 19. N5e4 {[%emt 0:05:17]} O-O {[%emt 0:01:36]} 20. h5 {[%emt 0:06:29]} Rd8 {[%emt 0:06:07]} 21. Nd6 {[%emt 0:02:13]} f6 {[%emt 0:03:12]} 22. exf6 {[%emt 0:10:06]} Qxf6 {[%emt 0:03:36]} 23. f5 {[%emt 0:08:04]} Bc8 {[%emt 0:07:22]} 24. Qh2 {[%emt 0:12:36]} Rcd7 {[%emt 0:07:06]} 25. Nce4 {[%emt 0:04:42]} Qe7 {[%emt 0:03:13]} 26. h6 {[%emt 0:01:31]} exf5 {[%emt 0:01:46]} 27. hxg7 {[%emt 0:02:02]} Qxg7 {[%emt 0:00:43]} 28. gxf5 {[%emt 0:01:18]} Kh8 {[%emt 0:02:34]} 29. f6 {[%emt 0:02:31]} Qf8 {[%emt 0:01:37]} 30. Qf4 {[%emt 0:03:01]} Qg8 {[%emt 0:05:31]} 31. f7 {[%emt 0:02:04]} Qg6 {[%emt 0:01:14]} 32. f8=Q+ {[%emt 0:00:53]} 1-0